bitfinex/quotes_ETHUSD_20251119
["timestamp","ask_amount","ask_price","bid_price","bid_amount"]
[1763574212643,0.4944,2938.4,2936.4,0.2852]
[1763574212843,0.4944,2938.4,2936.5,0.03405414]
[1763574213000,0.4944,2938.4,2936.9,0.90699264]
[1763574213199,0.4944,2938.8,2936.9,0.90699264]
[1763574213435,0.4944,2938.8,2937.0,0.1622]
[1763574213604,0.4944,2938.8,2937.2,0.90699264]
[1763574213797,0.4944,2938.8,2937.3,0.123]
[1763574214212,0.90699264,2938.7,2937.3,0.123]
[1763574214508,0.4944,2938.6,2937.3,0.2377]
[1763574214710,0.4944,2938.6,2937.3,0.123]
[1763574215600,0.4944,2938.6,2937.4,3.40437121]
[1763574215806,0.4944,2938.6,2937.4,4.0975552]
[1763574216218,0.4944,2938.6,2937.4,0.69318399]
[1763574216418,0.4944,2938.6,2936.8,0.1622]
[1763574216628,0.4944,2938.6,2936.9,0.122]
[1763574217306,0.4944,2938.6,2936.5,3.40539547]
[1763574217307,0.405504,2938.5,2936.1,3.40587854]
[1763574217506,0.405504,2938.5,2934.3,10.0]
[1763574217507,1.31249664,2938.3,2935.6,6.81291728]
[1763574217841,1.31249664,2938.3,2935.5,8.07377086]
[1763574217842,1.31249664,2938.1,2935.7,0.03406342]
[1763574218044,0.405504,2937.9,2935.8,0.123]
[1763574218243,1.31249664,2937.6,2935.9,0.123]
[1763574218747,0.405504,2937.4,2935.9,0.123]
[1763574218908,0.1923,2936.0,2935.9,0.123]
[1763574219406,0.6482,2936.0,2935.1,0.123]
[1763574219946,0.6482,2936.0,2934.1,1.19219264]
[1763574219947,0.1923,2935.2,2933.6,3.40878101]
[1763574220150,0.1923,2935.2,2933.7,0.123]
[1763574220311,0.4559,2935.1,2933.7,0.123]
[1763574221627,0.4559,2935.1,2933.7,3.53162051]
[1763574221812,0.4559,2935.1,2933.8,0.90699264]
[1763574222656,0.4559,2935.6,2933.9,0.2852]
[1763574222958,0.4559,2935.6,2933.8,0.90699264]
[1763574223263,0.4559,2935.6,2933.9,0.44386132]
[1763574223414,0.4559,2935.6,2933.5,3.40983759]
[1763574223415,0.405504,2935.5,2933.5,3.40987645]
[1763574223610,0.90699264,2935.4,2933.5,0.001]
[1763574223854,1.36289264,2935.4,2933.6,0.122]
[1763574224149,0.405504,2935.2,2933.6,0.122]
[1763574224555,0.405504,2935.0,2933.6,0.122]
[1763574224913,0.4559,2934.9,2933.6,0.122]
[1763574225263,0.405504,2934.8,2933.6,0.122]
[1763574225463,0.1923,2933.7,2933.6,0.122]
[1763574225934,0.6482,2933.7,2933.6,0.122]
[1763574226135,0.1923,2934.1,2933.5,0.001]
[1763574226311,0.1923,2934.1,2933.3,0.001]
[1763574226312,0.405504,2934.0,2933.3,0.001]
[1763574226509,0.861404,2934.0,2933.3,0.001]
[1763574226958,0.405504,2933.8,2933.3,0.001]
[1763574227260,0.405504,2933.8,2933.0,0.001]
[1763574227425,0.405504,2933.6,2933.0,0.001]
[1763574227751,0.405504,2933.4,2933.0,0.001]
[1763574227951,0.4559,2933.5,2933.0,0.001]
[1763574228178,1.09929264,2934.1,2933.0,0.001]
[1763574228179,0.4559,2933.4,2933.0,0.001]
[1763574229084,0.405504,2933.3,2933.0,0.001]
[1763574229482,0.405504,2933.1,2933.0,0.001]
[1763574229684,0.597804,2933.1,2933.0,0.001]
[1763574229889,0.6482,2933.1,2933.0,0.001]
[1763574230183,0.4559,2933.8,2933.0,0.001]
[1763574230584,0.405504,2933.7,2933.0,0.001]
[1763574230972,0.4559,2933.6,2933.0,0.001]
[1763574231365,0.4559,2934.0,2933.0,0.001]
[1763574231550,0.4559,2934.0,2933.0,3.41047834]
[1763574231753,0.4559,2934.0,2933.1,0.35291783]
[1763574231976,0.4559,2934.0,2933.0,0.001]
[1763574232179,0.405504,2933.9,2933.0,0.001]
[1763574232380,0.4559,2934.0,2933.0,0.001]
[1763574232582,0.4559,2933.9,2933.0,0.001]
[1763574232753,0.405504,2933.8,2933.0,0.001]
[1763574233263,0.405504,2933.6,2933.0,0.001]
[1763574233667,0.4559,2933.7,2933.0,0.001]
[1763574233668,0.405504,2933.4,2933.0,0.001]
[1763574234149,0.4559,2933.3,2933.0,0.001]
[1763574234356,0.405504,2933.2,2933.0,0.001]
[1763574234589,0.405504,2933.2,2932.9,0.001]
[1763574234762,0.4559,2933.1,2932.9,0.001]
[1763574234963,0.405504,2933.0,2932.9,0.001]
[1763574235376,0.861404,2933.0,2932.9,0.001]
[1763574235604,0.861404,2933.0,2930.8,0.90699264]
[1763574235605,0.405504,2932.6,2930.7,0.2882]
[1763574235805,0.405504,2932.6,2930.8,3.41203766]
[1763574236106,0.6482,2932.5,2930.9,0.35340377]
[1763574236417,0.405504,2932.4,2931.0,0.03411804]
[1763574236583,0.861404,2932.4,2931.0,0.03411804]
[1763574236789,0.4559,2932.3,2930.9,0.35340377]
[1763574236985,0.44494194,2932.3,2930.9,0.35340377]
[1763574237293,0.405504,2932.2,2930.9,0.35340377]
[1763574237693,0.405504,2932.2,2930.7,0.122]
[1763574237694,0.90699264,2932.3,2930.7,3.53408147]
[1763574238100,0.405504,2932.4,2930.7,3.53408147]
[1763574238300,0.405504,2932.4,2930.7,0.122]
[1763574239019,0.4559,2932.3,2930.7,0.122]
[1763574239422,0.4559,2932.3,2930.8,0.2992]
[1763574239810,0.4559,2932.3,2930.9,6.8238425]
[1763574240126,0.4559,2932.3,2930.1,0.0476]
[1763574240127,1.31249664,2932.2,2930.1,0.0476]
[1763574240314,1.31249664,2932.2,2930.2,0.122]
[1763574240497,0.405504,2932.0,2930.3,0.03412619]
[1763574240698,0.405504,2932.0,2930.2,0.122]
[1763574240905,0.4559,2931.9,2930.3,0.72944614]
[1763574241104,0.4559,2932.0,2930.3,1.02864614]
[1763574241311,0.4559,2932.0,2930.3,0.72944614]
[1763574241514,0.4559,2932.0,2930.4,0.2992]
[1763574241721,0.4559,2932.0,2930.5,0.03412386]
[1763574242026,0.1923,2932.5,2930.5,0.03412386]
[1763574242027,0.4559,2932.3,2930.6,1.32819264]
[1763574242324,0.4559,2932.3,2930.7,1.08049538]
[1763574242529,0.1923,2932.5,2930.8,0.2992]
[1763574242829,0.1923,2933.1,2931.2,0.90699264]
[1763574243001,0.1923,2933.1,2931.3,0.122]
[1763574243212,0.6482,2934.1,2931.6,6.7126576]
[1763574243399,0.6482,2934.1,2931.7,1.5782584]
[1763574243400,0.4559,2934.0,2931.7,1.5782584]
[1763574243600,0.4559,2934.0,2931.7,2.0114584]
[1763574243830,3.86625826,2934.0,2931.8,1.20619264]
[1763574243999,0.4579,2934.0,2931.8,1.20619264]
[1763574244211,0.4559,2933.9,2931.9,0.2992]
[1763574244415,6.7126576,2933.7,2931.9,0.40922962]
[1763574244646,1.31249664,2933.1,2931.2,0.2992]
[1763574244809,1.31249664,2933.1,2931.4,0.122]
[1763574245140,0.405504,2932.9,2931.4,0.122]
[1763574245498,1.31249664,2932.6,2931.4,0.122]
[1763574245703,0.1923,2931.5,2930.9,0.122]
[1763574246404,0.6482,2931.5,2930.9,0.122]
[1763574246603,0.405504,2931.1,2930.7,1.0]
[1763574246870,1.31249664,2931.1,2930.7,1.0]
[1763574247039,0.4559,2931.4,2930.6,0.001]
[1763574247040,0.405504,2930.9,2930.6,0.001]
[1763574247242,0.405504,2930.7,2930.6,0.001]
[1763574247415,0.405504,2930.7,2930.4,0.001]
[1763574247416,0.861404,2930.7,2930.4,0.001]
[1763574247602,0.405504,2930.1,2928.5,0.4935]
[1763574247801,0.405504,2929.9,2928.7,0.122]
[1763574248243,0.405504,2930.0,2928.7,3.53646079]
[1763574248456,0.1576,2930.2,2928.7,3.53646079]
[1763574248457,0.1576,2930.2,2928.8,0.40356608]
[1763574248752,0.405504,2930.3,2928.9,0.4992]
[1763574249262,1.06459264,2930.4,2928.9,0.4992]
[1763574249541,0.1576,2930.4,2928.9,0.4992]
[1763574249739,0.1576,2930.4,2929.0,3.41413451]
[1763574249944,0.1576,2930.8,2929.1,0.39133345]
[1763574250247,0.90699264,2930.7,2929.1,0.89053345]
[1763574250450,1.31249664,2930.4,2929.2,0.122]
[1763574250669,1.31249664,2930.4,2928.6,0.4992]
[1763574250670,1.31249664,2930.4,2928.9,0.122]
[1763574250877,0.405504,2930.2,2928.9,0.122]
[1763574251062,6.98168936,2930.8,2929.0,0.4992]
[1763574251063,0.1576,2930.8,2929.0,0.4992]
[1763574251267,0.405504,2930.7,2929.0,0.4992]
[1763574251444,0.868704,2930.7,2929.0,0.4992]
[1763574251654,0.405504,2930.5,2929.0,0.4992]
[1763574252273,0.405504,2930.3,2929.1,0.122]
[1763574252631,0.405504,2930.1,2929.1,0.122]
[1763574252833,0.4632,2931.0,2929.2,0.53333901]
[1763574253061,0.868704,2930.7,2929.2,0.4992]
[1763574253266,0.405504,2930.5,2929.2,0.4992]
[1763574253566,0.405504,2930.5,2929.1,0.122]
[1763574253743,1.31249664,2930.1,2929.1,0.122]
[1763574253947,0.405504,2929.9,2929.1,0.122]
[1763574254143,3.41266462,2930.3,2929.1,0.122]
[1763574254144,3.41266462,2930.3,2929.1,0.6212]
[1763574254145,0.405504,2930.3,2929.1,0.6212]
[1763574254343,0.1576,2930.8,2929.2,0.03413901]
[1763574254544,0.1576,2930.8,2929.2,0.90699264]
[1763574254751,0.1576,2930.8,2929.3,0.6846]
[1763574254946,1.37019264,2931.1,2929.3,0.6846]
[1763574255179,0.4632,2931.1,2929.4,0.4992]
[1763574255364,0.1576,2931.3,2929.4,0.4992]
[1763574255563,0.1576,2931.3,2929.5,0.03413551]
[1763574255875,0.1576,2931.3,2929.7,0.90699264]
[1763574256035,0.1576,2931.3,2929.3,0.1854]
[1763574256036,0.4632,2931.2,2929.3,0.1854]
[1763574256239,3.56908084,2931.3,2929.5,0.90699264]
[1763574256240,0.1576,2931.3,2929.5,0.90699264]
[1763574256460,0.4632,2931.2,2929.4,7.44853664]
[1763574256659,0.4632,2931.2,2929.5,0.4992]
[1763574256941,0.1576,2931.3,2929.5,1.40619264]
[1763574257136,1.37019264,2931.2,2929.5,0.90699264]
[1763574257476,0.405504,2931.1,2929.6,0.4992]
[1763574257772,0.405504,2931.1,2929.7,3.44745194]
[1763574257974,0.405504,2931.1,2929.7,0.90699264]
[1763574258195,5.18738836,2931.1,2929.6,0.4992]
[1763574258500,0.405504,2930.9,2929.6,4.3160925]
[1763574258701,0.405504,2930.9,2929.6,0.90267546]
[1763574258898,0.405504,2930.9,2929.4,0.122]
[1763574258899,1.31249664,2930.7,2929.4,0.122]
[1763574259394,0.90699264,2931.1,2929.5,0.90699264]
[1763574259596,0.405504,2931.0,2929.5,1.40619264]
[1763574259907,4.72436268,2931.0,2929.6,0.122]
[1763574260114,0.4632,2930.9,2929.6,0.122]
[1763574260411,0.405504,2930.8,2929.6,0.6212]
[1763574260802,0.405504,2930.6,2929.6,0.122]
[1763574261102,0.4632,2930.5,2929.6,0.122]
[1763574261308,0.1576,2931.3,2929.6,0.122]
[1763574261309,0.405504,2930.4,2929.6,0.122]
[1763574261673,1.31249664,2930.9,2929.6,0.122]
[1763574261875,0.47243194,2930.8,2929.6,4.03463528]
[1763574262066,0.4632,2930.9,2929.6,7.44807056]
[1763574262591,0.4632,2930.9,2929.6,0.122]
[1763574262801,8.02515424,2930.8,2929.6,0.122]
[1763574263310,0.405504,2930.6,2929.6,0.122]
[1763574263493,0.405504,2930.6,2929.4,0.122]
[1763574263810,0.405504,2930.5,2929.4,0.122]
[1763574264006,4.24604219,2930.5,2929.3,0.122]
[1763574264206,0.83361192,2930.5,2929.3,0.122]
[1763574264496,0.90699264,2930.4,2929.3,0.122]
[1763574265002,0.869304,2930.5,2929.3,0.122]
[1763574265205,3.875677,2931.0,2929.4,0.4941]
[1763574265404,1.31249664,2930.9,2929.4,0.4941]
[1763574265567,0.405504,2930.9,2929.4,0.4941]
[1763574265785,0.405504,2930.9,2929.5,3.4135518]
[1763574265999,0.405504,2930.9,2929.6,0.39076518]
[1763574266187,4.28122689,2930.9,2929.6,0.39076518]
[1763574266519,0.869304,2930.9,2929.6,0.39076518]
[1763574266905,0.869304,2930.9,2929.4,0.4941]
[1763574266906,0.405504,2930.7,2929.4,3.90774694]
[1763574267094,1.52839264,2931.3,2929.4,10.73508358]
[1763574267311,0.90699264,2931.2,2929.5,0.4941]
[1763574267484,0.405504,2931.2,2929.5,1.40109264]
[1763574267820,0.405504,2931.0,2929.5,0.4941]
[1763574268025,1.31249664,2931.0,2929.6,3.90753528]
[1763574268322,1.31249664,2931.0,2929.7,0.73209949]
[1763574268323,0.405504,2931.0,2929.7,0.73209949]
[1763574268494,0.1576,2931.3,2929.7,1.22619949]
[1763574268824,1.06459264,2931.3,2929.8,0.4941]
[1763574269027,0.1576,2931.3,2929.9,0.122]
[1763574269388,0.1576,2931.3,2930.0,0.4941]
[1763574269807,0.1576,2931.3,2930.1,0.187]
[1763574270215,0.1576,2931.3,2930.1,4.09394051]
[1763574270528,0.0853,2932.0,2930.2,1.81048669]
[1763574270915,0.0853,2932.0,2930.3,0.4941]
[1763574271222,4.06571154,2932.9,2930.6,0.90699264]
[1763574271426,0.1923,2932.9,2931.1,0.90699264]
[1763574271728,3.40869285,2933.7,2931.1,0.90699264]
[1763574271729,0.4638,2933.4,2931.2,1.07660533]
[1763574271959,0.1876,2933.6,2931.5,0.90699264]
[1763574272086,0.1876,2933.6,2931.6,0.6811]
[1763574272292,0.1876,2933.6,2931.7,0.4941]
[1763574272584,1.37079264,2933.5,2931.7,0.4941]
[1763574272787,0.49672311,2933.4,2931.7,0.4941]
[1763574273091,0.4638,2933.4,2931.8,0.122]
[1763574273288,0.405504,2933.3,2931.8,0.122]
[1763574273485,0.1876,2933.6,2931.9,0.4941]
[1763574273796,0.869304,2933.5,2931.9,0.4941]
[1763574274007,1.77629664,2933.5,2932.0,3.4106412]
[1763574274209,0.66018966,2933.4,2931.9,0.4941]
[1763574274409,1.5671823,2933.4,2931.9,3.90485375]
[1763574274826,1.5671823,2933.4,2931.8,1.02899264]
[1763574274827,0.869304,2933.3,2931.8,0.122]
[1763574275032,0.869304,2933.3,2931.6,0.187]
[1763574275203,0.405504,2933.1,2931.6,0.187]
[1763574275390,1.31249664,2932.8,2930.7,0.6811]
[1763574275591,1.31249664,2932.8,2930.8,3.53403766]
[1763574275592,0.405504,2932.6,2930.8,3.53403766]
[1763574275820,0.405504,2932.6,2930.8,4.02813766]
[1763574276022,1.26631542,2932.7,2930.8,4.02813766]
[1763574276023,0.405504,2932.3,2930.9,0.4941]
[1763574276246,0.6514,2932.5,2930.9,0.4941]
[1763574276247,0.80251542,2932.7,2930.9,0.4941]
[1763574276389,3.40852821,2933.9,2932.6,0.187]
[1763574276390,0.4638,2933.9,2932.6,0.187]
[1763574276591,0.4638,2933.9,2932.6,0.6811]
[1763574277048,0.002,2934.3,2932.7,0.4941]
[1763574277455,0.002,2934.3,2933.9,0.187]
[1763574277617,0.002,2934.3,2933.9,0.8031]
[1763574278023,0.002,2934.3,2933.9,4.21153246]
[1763574278507,0.002,2934.3,2933.9,4.54801031]
[1763574278733,0.002,2934.3,2933.9,0.122]
[1763574279147,0.002,2934.3,2933.9,0.6075]
[1763574279808,0.002,2934.3,2933.9,0.122]
[1763574280450,0.002,2934.3,2933.1,0.1906]
[1763574281462,0.002,2934.3,2933.0,0.122]
[1763574281463,0.405504,2934.1,2933.0,0.122]
[1763574282554,1.33718829,2934.0,2932.6,0.187]
[1763574282755,0.871804,2933.9,2932.6,0.187]
[1763574283267,0.405504,2933.7,2932.2,0.122]
[1763574283432,0.405504,2933.5,2932.2,0.122]
[1763574284060,1.31249664,2933.2,2931.9,0.4855]
[1763574284365,2.17219213,2933.2,2931.5,0.187]
[1763574284587,0.405504,2933.0,2931.6,0.4855]
[1763574284956,0.4663,2933.0,2931.6,0.4855]
[1763574285364,0.405504,2932.9,2931.6,0.4855]
[1763574285574,0.405504,2932.9,2931.3,0.122]
[1763574285884,0.405504,2932.7,2930.7,4.08464823]
[1763574286058,0.405504,2932.7,2930.8,0.74969144]
[1763574286059,1.31249664,2932.5,2930.8,0.74969144]
[1763574286258,1.31249664,2932.5,2929.7,3.41327721]
[1763574286259,1.31249664,2931.8,2930.0,0.4855]
[1763574286460,1.31249664,2931.8,2930.0,0.6761]
[1763574286661,0.405504,2931.6,2930.0,0.6761]
[1763574287047,0.405504,2931.6,2929.6,0.122]
[1763574287048,0.405504,2931.4,2929.6,0.122]
[1763574287273,0.405504,2931.4,2929.7,0.6761]
[1763574287593,0.405504,2931.2,2929.7,0.6761]
[1763574287765,0.405504,2931.2,2929.7,1.58309264]
[1763574287964,0.405504,2931.2,2929.8,0.51185279]
[1763574288152,0.405504,2931.2,2929.9,3.44721662]
[1763574288353,0.405504,2931.5,2930.0,0.4855]
[1763574288577,0.405504,2931.5,2930.0,1.39249264]
[1763574288795,0.405504,2931.9,2930.1,0.4855]
[1763574288970,0.405504,2931.9,2930.2,0.122]
[1763574289296,0.871804,2931.9,2930.2,0.122]
[1763574289498,0.871804,2931.9,2930.3,0.4855]
[1763574289847,0.4663,2931.8,2930.3,0.4855]
[1763574290065,3.41099021,2931.7,2930.3,0.4855]
[1763574290263,3.41099021,2931.7,2930.2,0.122]
[1763574290264,1.31249664,2931.6,2930.2,0.122]
[1763574290555,1.77879664,2931.6,2930.2,0.122]
[1763574291094,0.405504,2931.4,2930.2,0.122]
[1763574291467,0.405504,2931.2,2930.2,0.122]
[1763574291787,0.405504,2931.2,2929.9,1.39249264]
[1763574291987,0.405504,2931.1,2929.9,0.98512483]
[1763574292217,0.405504,2931.1,2929.9,3.41303431]
[1763574292387,0.405504,2931.4,2930.0,0.4855]
[1763574292779,0.871804,2931.4,2930.0,0.4855]
[1763574292998,0.871804,2931.4,2929.7,0.1906]
[1763574292999,0.871804,2931.4,2929.7,3.60391428]
[1763574293200,0.405504,2931.2,2929.7,0.1906]
[1763574293473,0.405504,2931.2,2929.7,4.08937001]
[1763574293680,0.4663,2931.2,2929.8,0.421137]
[1763574293888,0.405504,2931.4,2929.8,0.421137]
[1763574294093,0.405504,2931.2,2929.8,0.421137]
[1763574294311,0.90699264,2931.2,2929.8,0.51963202]
[1763574294513,0.405504,2931.1,2929.8,0.4855]
[1763574294904,3.87777267,2931.3,2929.8,1.39249264]
[1763574295116,0.4663,2931.3,2929.8,1.39249264]
[1763574295281,0.405504,2931.7,2929.9,0.4855]
[1763574295484,0.405504,2931.5,2929.9,0.4855]
[1763574296287,0.405504,2931.5,2930.0,6.82593856]
[1763574296483,0.405504,2931.5,2930.1,0.4855]
[1763574296684,1.31249664,2931.5,2930.1,0.4855]
[1763574296901,1.31249664,2931.5,2930.2,0.73114386]
[1763574297301,0.1622,2932.0,2930.3,0.6075]
[1763574297502,0.1622,2932.0,2930.4,0.4855]
[1763574297731,0.4663,2932.6,2930.4,0.4855]
[1763574297941,0.71789576,2932.9,2930.5,0.43962786]
[1763574298106,3.40960917,2932.9,2930.7,0.90699264]
[1763574298293,3.87601805,2932.8,2930.9,0.90699264]
[1763574298493,0.90699264,2932.6,2931.0,0.6075]
[1763574298827,3.40982712,2932.7,2931.0,0.6075]
[1763574298828,6.81965424,2932.7,2931.0,0.6075]
[1763574298993,1.37329264,2932.6,2931.0,0.122]
[1763574299194,0.47831198,2932.5,2931.1,0.4855]
[1763574299497,0.405504,2932.4,2931.1,0.4855]
[1763574300142,0.4663,2932.3,2931.1,0.4855]
[1763574300348,0.4663,2932.3,2929.8,0.4855]
[1763574300349,0.405504,2931.8,2929.8,0.4855]
[1763574300520,0.405504,2931.8,2930.4,0.4855]
[1763574300710,0.405504,2932.2,2930.5,0.122]
[1763574300909,1.31249664,2932.2,2930.5,0.122]
[1763574301144,1.31249664,2932.2,2930.1,0.4855]
[1763574301145,0.405504,2932.0,2930.1,0.4855]
[1763574301657,0.4663,2932.4,2930.2,7.15228896]
[1763574301815,0.002,2932.4,2930.4,0.405504]
[1763574302014,0.002,2932.4,2930.6,0.405504]
[1763574302226,0.002,2932.4,2930.5,0.122]
[1763574302227,0.002,2932.4,2932.3,0.1906]
[1763574302460,0.002,2932.4,2932.0,4.2086256]
[1763574302961,0.002,2932.4,2932.1,0.4855]
[1763574303321,0.002,2932.4,2932.1,1.39249264]
[1763574303564,0.002,2932.7,2932.2,0.405504]
[1763574303768,0.002,2933.0,2932.3,0.90699264]
[1763574303932,0.002,2933.0,2932.9,0.1906]
[1763574304125,0.002,2933.0,2932.9,0.7981]
[1763574304324,0.002,2933.0,2932.9,4.20769459]
[1763574304567,0.002,2933.0,2932.9,4.87924809]
[1763574304870,0.002,2933.0,2932.2,10.12301129]
[1763574304871,0.002,2933.0,2932.6,0.1906]
[1763574305171,0.002,2933.0,2932.4,0.122]
[1763574305520,0.002,2933.0,2931.4,0.1906]
[1763574305521,0.405504,2932.4,2931.4,0.1906]
[1763574305763,0.002,2933.0,2931.5,0.4855]
[1763574305947,0.002,2933.0,2931.5,1.39249264]
[1763574306152,0.002,2933.0,2931.6,0.4855]
[1763574306321,0.002,2933.0,2931.8,0.90699264]
[1763574306664,0.002,2933.0,2932.9,0.1906]
[1763574306960,0.1896,2934.5,2932.9,0.3126]
[1763574307180,0.1896,2934.5,2933.0,0.4855]
[1763574307381,0.6559,2933.9,2932.6,0.1906]
[1763574307546,0.6559,2933.9,2931.7,6.82198042]
[1763574307547,0.405504,2933.7,2932.3,0.3126]
[1763574307748,0.897604,2933.7,2932.3,0.3126]
[1763574307942,0.897604,2933.7,2932.3,0.122]
[1763574308441,1.31249664,2933.5,2932.3,0.122]
[1763574308959,0.4921,2933.4,2932.3,0.122]
[1763574309149,0.405504,2933.2,2932.3,0.122]
[1763574309340,10.22634303,2933.6,2932.3,0.122]
[1763574309341,0.405504,2933.7,2932.3,1.50809264]
[1763574309541,0.897604,2933.7,2932.3,0.6011]
[1763574309756,1.80459664,2933.7,2932.3,0.6011]
[1763574309964,1.31249664,2933.7,2932.3,0.6011]
[1763574310164,0.90699264,2933.7,2932.4,0.4791]
[1763574310370,0.90699264,2933.7,2932.3,0.122]
[1763574310371,0.897604,2933.6,2932.3,0.122]
[1763574310541,0.90699264,2933.7,2932.4,0.4791]
[1763574310542,1.31249664,2933.7,2932.4,0.4791]
[1763574310738,0.4921,2933.6,2932.3,0.122]
[1763574310942,0.405504,2933.5,2932.3,0.121]
[1763574311176,0.405504,2933.5,2931.1,3.41161763]
[1763574311177,0.405504,2932.3,2930.9,0.4791]
[1763574311388,0.405504,2932.3,2929.2,0.189]
[1763574311389,0.405504,2932.3,2931.0,0.121]
[1763574311553,0.405504,2932.3,2929.5,8.0902526]
[1763574311554,0.405504,2932.1,2929.8,0.4791]
[1763574311745,0.405504,2932.1,2929.9,0.121]
[1763574311946,1.06919264,2932.4,2930.0,0.4791]
[1763574311947,0.405504,2931.9,2930.0,0.4791]
[1763574312370,1.06919264,2932.4,2930.0,0.4791]
[1763574312371,0.405504,2931.7,2930.0,0.4791]
[1763574312613,9.40274924,2931.5,2929.4,0.4791]
[1763574312773,0.405504,2931.3,2929.4,0.4791]
[1763574312980,1.31249664,2930.9,2929.0,0.121]
[1763574313175,1.31249664,2930.4,2928.9,0.001]
[1763574313711,0.405504,2930.2,2928.9,0.001]
[1763574314396,0.405504,2930.0,2928.9,0.001]
[1763574314602,0.405504,2929.9,2928.9,0.001]
[1763574314803,0.405504,2929.7,2928.9,0.001]
[1763574315284,0.405504,2929.9,2928.9,0.001]
[1763574315485,1.80459664,2929.9,2928.9,0.001]
[1763574316023,0.405504,2929.7,2928.9,0.001]
[1763574316525,1.31249664,2929.3,2928.9,0.001]
[1763574316691,1.31249664,2929.3,2928.6,0.001]
[1763574316692,0.1896,2929.0,2928.6,0.001]
[1763574316894,0.1896,2929.0,2925.9,8.0902526]
[1763574316895,0.405504,2928.5,2926.6,0.122]
[1763574317077,0.405504,2928.3,2926.6,0.122]
[1763574317489,0.405504,2928.1,2926.6,0.122]
[1763574317714,0.405504,2928.1,2925.9,0.6011]
[1763574317715,1.31249664,2928.1,2925.9,0.6011]
[1763574317923,0.405504,2927.9,2925.9,0.6011]
[1763574318140,0.5131669,2929.3,2926.0,0.4791]
[1763574318281,0.1896,2929.6,2928.0,0.189]
[1763574318483,0.1896,2929.6,2928.1,0.6011]
[1763574318687,0.1896,2929.6,2928.1,4.0162839]
[1763574318917,0.1896,2929.6,2928.2,0.89962839]
[1763574319225,0.1896,2929.6,2928.2,0.42052839]
[1763574319406,0.1896,2929.6,2928.3,0.4791]
[1763574319720,0.4921,2929.5,2928.4,0.122]
[1763574319884,0.4921,2929.5,2928.2,0.42052839]
[1763574319885,0.405504,2929.3,2928.0,1.09599264]
[1763574320081,0.405504,2929.3,2928.1,0.122]
[1763574320388,0.75085888,2929.4,2927.6,0.4791]
[1763574320389,0.405504,2929.1,2927.6,0.4791]
[1763574320589,0.4921,2929.2,2928.1,0.122]
[1763574320590,0.405504,2928.8,2928.1,0.122]
[1763574320791,0.405504,2928.8,2928.0,0.001]
[1763574320995,0.405504,2928.6,2928.0,0.001]
[1763574321386,0.4921,2928.5,2928.0,0.001]
[1763574321583,0.405504,2928.4,2928.0,0.001]
[1763574321786,0.405504,2928.7,2928.0,0.001]
[1763574322009,0.405504,2928.4,2928.0,0.001]
[1763574322212,0.405504,2928.4,2927.8,0.001]
[1763574322413,4.16459953,2929.4,2927.8,0.001]
[1763574322414,1.31249664,2928.2,2927.8,0.001]
[1763574322632,1.31249664,2927.9,2927.8,0.001]
[1763574322848,1.31249664,2927.9,2927.5,0.001]
[1763574322849,0.405504,2927.8,2927.5,0.001]
[1763574323333,0.405504,2927.6,2927.5,0.001]
[1763574323637,0.405504,2928.0,2927.5,0.001]
[1763574323840,0.4921,2929.0,2927.5,0.4801]
[1763574324242,0.4921,2929.0,2927.5,0.001]
[1763574324604,0.405504,2928.8,2927.5,0.001]
[1763574324851,0.405504,2928.6,2927.5,0.001]
[1763574325206,0.881704,2928.6,2927.5,0.001]
[1763574325635,0.405504,2928.6,2927.5,0.001]
[1763574325983,0.4762,2928.5,2927.5,0.001]
[1763574326243,0.405504,2928.4,2927.5,0.001]
[1763574326451,0.405504,2928.8,2927.5,0.001]
[1763574326620,1.31249664,2928.6,2927.5,0.391072]
[1763574326939,0.4762,2928.9,2927.5,0.4847]
[1763574327144,0.90699264,2928.8,2927.5,0.001]
[1763574327355,3.41405776,2929.1,2927.6,0.4837]
[1763574327559,0.90699264,2929.0,2927.6,0.4837]
[1763574327918,0.1896,2929.6,2927.7,0.0341565]
[1763574328159,0.1896,2929.6,2927.6,0.4837]
[1763574328160,0.4762,2929.5,2927.6,0.4837]
[1763574328354,1.38319264,2929.5,2927.6,0.4837]
[1763574328554,1.38319264,2929.5,2927.5,3.53884945]
[1763574328555,0.405504,2929.0,2927.5,0.001]
[1763574328715,1.31249664,2929.0,2927.5,0.001]
[1763574329052,0.405504,2928.8,2927.6,0.4837]
[1763574329369,0.90699264,2929.0,2927.6,0.4837]
[1763574329370,0.405504,2928.9,2927.6,0.4837]
[1763574329588,8.0902526,2928.8,2927.5,0.001]
[1763574329785,2.6858923,2928.7,2927.5,0.001]
[1763574330144,0.405504,2928.5,2927.5,0.001]
[1763574330772,4.89636382,2927.6,2927.5,0.001]
[1763574331281,5.37256382,2927.6,2927.5,0.001]
[1763574331589,5.37256382,2927.6,2925.4,4.32528777]
[1763574331590,4.90349664,2927.5,2925.2,0.4837]
[1763574331794,1.31249664,2926.5,2925.0,0.001]
[1763574332241,0.405504,2926.3,2925.0,0.001]
[1763574332676,0.1828,2925.4,2925.0,0.001]
[1763574332859,0.588304,2925.4,2925.0,0.001]
[1763574333260,0.405504,2925.3,2925.0,0.001]
[1763574333641,0.405504,2925.3,2922.8,0.1944]
[1763574333642,0.405504,2925.1,2922.8,0.1944]
[1763574333842,1.31249664,2924.0,2922.7,0.4837]